[Event "15th Vandoeuvre Open 2019"]
[Site "Vandoeuvre-les-Nancy"]
[Date "2019.01.04"]
[Round "5"]
[White "Bauer, Christian"]
[Black "Tilicheev, Viacheslav"]
[Result "1/2-1/2"]
[ECO "D00"]
[WhiteElo "2637"]
[BlackElo "2507"]
[Annotator "ChessBase"]
[PlyCount "90"]
[EventDate "2019.01.02"]
[EventType "swiss"]
[EventCountry "FRA"]
[SourceTitle "playchess.com"]
[Source "ChessBase"]
[SourceQuality "1"]
[TimeControl "5400+30"]

1. d4 {[%emt 0:00:00]} Nf6 {[%emt 0:00:00]} 2. Bf4 {[%emt 0:00:00]} d5 {[%emt 0:00:00]} 3. e3 {[%emt 0:00:02]} e6 {[%emt 0:00:00]} 4. Nd2 {[%emt 0:00:13]} Bd6 {[%emt 0:01:21]} 5. Bg3 {[%emt 0:02:08]} c5 {[%emt 0:01:59]} 6. c3 {[%emt 0:00:10]} Qc7 {[%emt 0:00:40]} 7. dxc5 {[%emt 1:30:57]} Qxc5 {[%emt 0:07:50]} 8. Ngf3 {[%emt 0:00:00]} Nbd7 {[%emt 0:07:44]} 9. Rc1 {[%emt 0:00:00]} Bxg3 {[%emt 0:15:09]} 10. hxg3 {[%emt 0:00:00]} b6 {[%emt 0:07:46]} 11. c4 {[%emt 0:00:00]} Bb7 {[%emt 0:03:03]} 12. a3 {[%emt 0:00:00]} Rc8 {[%emt 0:01:13]} 13. Be2 {[%emt 0:00:00]} h6 {[%emt 0:02:31]} 14. O-O {[%emt 0:00:00]} O-O {[%emt 0:01:30]} 15. b4 {[%emt 0:00:00]} Qe7 {[%emt 0:02:24]} 16. Qb3 {[%emt 0:00:00]} dxc4 {[%emt 0:04:52]} 17. Nxc4 {[%emt 0:00:00]} Rc7 {[%emt 0:02:59]} 18. Nd4 {[%emt 0:00:00]} a6 {[%emt 0:01:06]} 19. Nd2 {[%emt 0:00:00]} Rfc8 {[%emt 0:00:41]} 20. Rxc7 {[%emt 0:00:00]} Rxc7 {[%emt 0:00:09]} 21. Qb2 {[%emt 0:00:00]} Qd8 {[%emt 0:02:39]} 22. Bf3 {[%emt 0:00:00]} Bxf3 {[%emt 0:01:30]} 23. gxf3 {[%emt 0:00:00]} Qc8 {[%emt 0:05:16]} 24. Rd1 {[%emt 0:00:00]} Ne5 {[%emt 0:06:35]} 25. Kg2 {[%emt 0:00:00]} Nc6 {[%emt 0:02:59]} 26. Nc4 {[%emt 0:00:00]} Nd5 {[%emt 0:10:11]} 27. Nd6 {[%emt 0:05:16]} Qf8 {[%emt 0:03:02]} 28. Ne4 {[%emt 0:00:35]} Nxd4 {[%emt 0:00:16]} 29. Rxd4 {[%emt 0:00:18]} Qc8 {[%emt 0:06:16]} 30. Rd2 {[%emt 0:00:03]} Rc6 {[%emt 0:02:26]} 31. g4 {[%emt 0:01:52]} Qc7 {[%emt 0:00:37]} 32. b5 {[%emt 0:01:54]} axb5 {[%emt 0:00:27]} 33. Qxb5 {[%emt 0:00:01]} Rc1 {[%emt 0:00:30]} 34. g5 {[%emt 0:02:49]} Qc4 {[%emt 0:00:43]} 35. Qe8+ {[%emt 0:00:39]} Kh7 {[%emt 0:01:06]} 36. Ng3 Qc7 {[%emt 0:00:00]} 37. g6+ {[%emt 0:00:46]} Kxg6 {[%emt 0:00:23]} 38. Rd4 {[%emt 0:00:30]} Nxe3+ {[%emt 0:00:26]} 39. fxe3 {[%emt 0:00:31]} Rg1+ {[%emt 0:00:04]} 40. Kxg1 {[%emt 0:00:00]} Qxg3+ {[%emt 0:00:05]} 41. Kh1 {[%emt 0:00:09]} Qxf3+ {[%emt 0:00:46]} 42. Kh2 {[%emt 0:00:02]} Qf2+ {[%emt 0:00:24]} 43. Kh1 {[%emt 0:00:06]} Qf3+ {[%emt 0:00:01]} 44. Kh2 {[%emt 0:00:04]} Qf2+ {[%emt 0:00:02]} 45. Kh1 {[%emt 0:00:04]} Qf3+ {[%emt 0:02:49]} 1/2-1/2

[Event "15th Vandoeuvre Open 2019"]
[Site "Vandoeuvre-les-Nancy"]
[Date "2019.01.04"]
[Round "5"]
[White "Ma, Qun"]
[Black "Xu, Xiangyu"]
[Result "1/2-1/2"]
[ECO "D70"]
[WhiteElo "2625"]
[BlackElo "2567"]
[Annotator "ChessBase"]
[PlyCount "67"]
[EventDate "2019.01.02"]
[EventType "swiss"]
[EventCountry "FRA"]
[SourceTitle "playchess.com"]
[Source "ChessBase"]
[SourceQuality "1"]
[TimeControl "5400+30"]

1. d4 {[%emt 0:00:00]} Nf6 {[%emt 0:08:00]} 2. c4 {[%emt 0:00:00]} g6 {[%emt 0:00:05]} 3. f3 {[%emt 0:00:02]} d5 {[%emt 0:00:04]} 4. cxd5 {[%emt 0:00:21]} Nxd5 {[%emt 0:00:06]} 5. e4 {[%emt 0:00:06]} Nb6 {[%emt 0:00:03]} 6. Nc3 {[%emt 0:00:12]} Bg7 {[%emt 0:00:07]} 7. Be3 {[%emt 0:00:04]} O-O {[%emt 0:00:05]} 8. Qd2 {[%emt 0:00:09]} e5 {[%emt 0:00:02]} 9. d5 {[%emt 0:00:15]} c6 {[%emt 0:00:06]} 10. h4 {[%emt 0:00:43]} cxd5 {[%emt 0:00:03]} 11. exd5 {[%emt 0:00:08]} N8d7 {[%emt 0:00:03]} 12. h5 {[%emt 0:02:10]} Nf6 {[%emt 0:00:06]} 13. hxg6 {[%emt 0:01:28]} fxg6 {[%emt 0:00:05]} 14. O-O-O {[%emt 0:00:17]} Bd7 {[%emt 0:00:03]} 15. Kb1 {[%emt 0:02:16]} Rc8 {[%emt 0:00:06]} 16. Nh3 {[%emt 0:01:49]} e4 {[%emt 0:22:45]} 17. Nxe4 {[%emt 0:27:28]} Bf5 {[%emt 0:32:39]} 18. Nhf2 {[%emt 0:03:13]} Na4 {[%emt 0:09:41]} 19. Bd4 {[%emt 0:31:06]} Qxd5 {[%emt 0:01:30]} 20. Bxf6 {[%emt 0:00:14]} Qxd2 {[%emt 0:00:13]} 21. Rxd2 {[%emt 0:00:04]} Rxf6 {[%emt 0:04:42]} 22. Bd3 {[%emt 0:03:08]} Rb6 {[%emt 0:05:37]} 23. b3 {[%emt 0:00:18]} Be6 {[%emt 0:06:56]} 24. Rhd1 {[%emt 0:06:14]} Nc3+ {[%emt 0:02:57]} 25. Nxc3 {[%emt 0:00:09]} Rxc3 {[%emt 0:00:06]} 26. Bc2 {[%emt 0:01:33]} Rc8 {[%emt 0:05:54]} 27. Ne4 {[%emt 0:00:22]} Be5 {[%emt 0:00:52]} 28. g3 {[%emt 0:06:37]} Bf5 {[%emt 0:00:31]} 29. g4 {[%emt 0:00:09]} Be6 {[%emt 0:00:28]} 30. Ng5 {[%emt 0:03:37]} Bf6 {[%emt 0:00:25]} 31. Ne4 {[%emt 0:02:43]} Be5 {[%emt 0:00:04]} 32. Ng5 {[%emt 0:00:36]} Bf6 {[%emt 0:00:05]} 33. Ne4 {[%emt 0:00:03]} Be5 {[%emt 0:00:12]} 34. Ng5 {[%emt 0:00:05]} 1/2-1/2

[Event "15th Vandoeuvre Open 2019"]
[Site "Vandoeuvre-les-Nancy"]
[Date "2019.01.04"]
[Round "5"]
[White "Bailet, Pierre"]
[Black "Taddei, Benoit"]
[Result "1/2-1/2"]
[ECO "A21"]
[WhiteElo "2492"]
[BlackElo "2290"]
[Annotator "ChessBase"]
[PlyCount "89"]
[EventDate "2019.01.02"]
[EventType "swiss"]
[EventCountry "FRA"]
[SourceTitle "playchess.com"]
[Source "ChessBase"]
[SourceQuality "1"]
[TimeControl "5400+30"]

1. c4 {[%emt 1:30:30]} e5 {[%emt 1:30:30]} 2. Nc3 {[%emt 0:00:00]} d6 {[%emt 0:00:30]} 3. g3 {[%emt 0:01:00]} Be7 {[%emt 0:00:00]} 4. Bg2 f5 {[%emt 0:01:00]} 5. Nf3 {[%emt 0:01:00]} Nf6 {[%emt 0:00:30]} 6. c5 {[%emt 0:00:30]} Nc6 {[%emt 0:00:30]} 7. cxd6 {[%emt 0:00:30]} cxd6 {[%emt 0:00:30]} 8. O-O {[%emt 0:00:30]} e4 {[%emt 0:00:30]} 9. Ng5 {[%emt 0:00:30]} h6 {[%emt 0:00:00]} 10. Nh3 {[%emt 0:00:00]} g5 {[%emt 0:01:00]} 11. d3 {[%emt 0:00:00]} d5 {[%emt 0:00:00]} 12. dxe4 {[%emt 0:01:30]} fxe4 {[%emt 0:01:00]} 13. f4 {[%emt 0:00:00]} exf3 {[%emt 0:00:00]} 14. exf3 {[%emt 0:00:00]} d4 {[%emt 0:00:00]} 15. Ne4 {[%emt 0:00:00]} Nxe4 {[%emt 0:00:00]} 16. fxe4 {[%emt 0:00:00]} Be6 {[%emt 0:00:00]} 17. Nf2 {[%emt 0:00:00]} Qd7 {[%emt 0:00:00]} 18. Bd2 {[%emt 0:00:00]} Ne5 {[%emt 0:00:00]} 19. Rc1 {[%emt 0:00:00]} h5 {[%emt 0:00:00]} 20. Qc2 {[%emt 0:00:00]} h4 {[%emt 0:00:00]} 21. Nd3 {[%emt 0:00:00]} Nc4 {[%emt 0:00:28]} 22. b3 {[%emt 0:00:00]} Nxd2 {[%emt 0:00:15]} 23. Qxd2 {[%emt 0:00:00]} hxg3 {[%emt 0:00:14]} 24. hxg3 {[%emt 0:00:00]} Bh3 {[%emt 0:00:54]} 25. Bxh3 {[%emt 0:00:00]} Qxh3 {[%emt 0:00:10]} 26. Qg2 {[%emt 0:00:00]} Kd7 {[%emt 0:01:09]} 27. Rc4 {[%emt 0:00:00]} Qxg2+ {[%emt 0:01:17]} 28. Kxg2 {[%emt 0:00:00]} Rac8 {[%emt 0:00:31]} 29. Rxd4+ {[%emt 0:00:00]} Ke6 {[%emt 0:00:05]} 30. Rd5 {[%emt 0:00:00]} Rc2+ {[%emt 0:00:27]} 31. Rf2 {[%emt 0:00:00]} Rhc8 {[%emt 0:01:01]} 32. Re5+ {[%emt 0:00:21]} Kd6 {[%emt 0:00:26]} 33. Ref5 {[%emt 0:03:02]} R8c3 {[%emt 0:00:26]} 34. Rxc2 {[%emt 0:00:35]} Rxc2+ {[%emt 0:00:04]} 35. Rf2 {[%emt 0:00:10]} Rc3 {[%emt 0:00:08]} 36. Rd2 {[%emt 0:00:07]} Ke6 {[%emt 0:00:05]} 37. Kf3 {[%emt 0:00:38]} a5 {[%emt 0:04:50]} 38. Kg4 {[%emt 0:03:25]} b5 {[%emt 0:00:30]} 39. Kh5 {[%emt 0:00:53]} a4 {[%emt 0:00:00]} 40. bxa4 {[%emt 0:00:05]} bxa4 {[%emt 0:00:00]} 41. Kg4 {[%emt 0:05:14]} a3 {[%emt 0:00:00]} 42. Kf3 {[%emt 0:00:00]} Bd6 {[%emt 0:02:00]} 43. Kg4 {[%emt 0:00:00]} Be7 {[%emt 0:00:00]} 44. Kf3 {[%emt 0:00:00]} Bd6 {[%emt 0:00:00]} 45. Kg4 {[%emt 0:00:01] Ke5 [%clk 0:00:00]} 1/2-1/2

[Event "15th Vandoeuvre Open 2019"]
[Site "Vandoeuvre-les-Nancy"]
[Date "2019.01.04"]
[Round "5"]
[White "Li, Di"]
[Black "Laurent-Paoli, Pierre"]
[Result "1/2-1/2"]
[ECO "D90"]
[WhiteElo "2488"]
[BlackElo "2342"]
[Annotator "ChessBase"]
[PlyCount "84"]
[EventDate "2019.01.02"]
[EventType "swiss"]
[EventCountry "FRA"]
[SourceTitle "playchess.com"]
[Source "ChessBase"]
[SourceQuality "1"]
[TimeControl "5400+30"]

1. Nf3 {[%emt 0:03:57]} g6 {[%emt 0:01:23]} 2. c4 {[%emt 0:02:45]} Bg7 {[%emt 0:02:31]} 3. d4 {[%emt 0:10:07]} Nf6 {[%emt 0:00:17]} 4. Nc3 {[%emt 0:00:06]} d5 {[%emt 0:00:02]} 5. cxd5 {[%emt 0:02:35]} Nxd5 {[%emt 0:00:11]} 6. Bd2 {[%emt 1:13:30]} c5 {[%emt 0:08:43]} 7. Rc1 {[%emt 0:00:00]} Nxc3 {[%emt 0:00:20]} 8. Bxc3 {[%emt 0:00:00]} cxd4 {[%emt 0:00:08]} 9. Nxd4 {[%emt 0:00:00]} O-O {[%emt 0:05:34]} 10. e3 {[%emt 0:00:00]} Bd7 {[%emt 0:04:09]} 11. Be2 {[%emt 0:00:00]} Nc6 {[%emt 0:01:03]} 12. Nb3 {[%emt 0:00:00]} Be6 {[%emt 0:19:51]} 13. O-O {[%emt 0:00:00]} Bxc3 {[%emt 0:08:14]} 14. Rxc3 {[%emt 0:00:00]} Qb6 {[%emt 0:00:26]} 15. a3 {[%emt 0:00:00]} Na5 {[%emt 0:08:05]} 16. Nxa5 {[%emt 0:00:00]} Qxa5 {[%emt 0:00:05]} 17. Qc2 {[%emt 0:00:00]} Rac8 {[%emt 0:00:42]} 18. Rc1 {[%emt 0:00:00]} Rxc3 {[%emt 0:00:09]} 19. Qxc3 {[%emt 0:00:00]} Qxc3 {[%emt 0:00:06]} 20. Rxc3 {[%emt 0:00:00]} Rc8 {[%emt 0:00:02]} 21. Rxc8+ {[%emt 0:00:00]} Bxc8 {[%emt 0:00:03]} 22. h4 {[%emt 0:00:03]} Kg7 {[%emt 0:01:05]} 23. g4 {[%emt 0:00:45]} h6 {[%emt 0:01:39]} 24. g5 {[%emt 0:00:07]} hxg5 {[%emt 0:01:06]} 25. hxg5 {[%emt 0:00:06]} f6 {[%emt 0:02:11]} 26. f4 {[%emt 0:02:21]} e5 {[%emt 0:04:42]} 27. Bc4 {[%emt 0:00:21]} exf4 {[%emt 0:01:13]} 28. exf4 {[%emt 0:00:01]} fxg5 {[%emt 0:00:09]} 29. fxg5 {[%emt 0:00:05]} Bf5 {[%emt 0:00:31]} 30. Kf2 {[%emt 0:00:08]} Kf8 {[%emt 0:00:06]} 31. Ke3 {[%emt 0:00:05]} Ke7 {[%emt 0:00:03]} 32. Kd4 {[%emt 0:00:11]} Kd6 {[%emt 0:00:04]} 33. b4 {[%emt 0:00:11]} b6 {[%emt 0:01:11]} 34. Be2 {[%emt 0:00:22]} Bb1 {[%emt 0:01:42]} 35. Kc4 {[%emt 0:01:18]} Be4 {[%emt 0:03:53]} 36. Kd4 {[%emt 0:00:40]} Bf5 {[%emt 0:00:26]} 37. Bf3 {[%emt 0:00:24]} Bb1 {[%emt 0:01:19]} 38. Bd5 {[%emt 0:00:34]} Bf5 {[%emt 0:00:38]} 39. Bf7 {[%emt 0:00:14]} Bb1 {[%emt 0:00:15]} 40. Bd5 {[%emt 0:00:06]} Bf5 {[%emt 0:00:04]} 41. Bf7 {[%emt 0:00:07]} Bb1 {[%emt 0:00:04]} 42. Bd5 {[%emt 0:00:07]} Bf5 {[%emt 0:00:03] Ke4 [%clk 0:00:00] Ke5+} 1/2-1/2

[Event "15th Vandoeuvre Open 2019"]
[Site "Vandoeuvre-les-Nancy"]
[Date "2019.01.04"]
[Round "5"]
[White "Leriche, Ines"]
[Black "Battistella, Valentin"]
[Result "1-0"]
[ECO "E44"]
[WhiteElo "1917"]
[BlackElo "1882"]
[Annotator "NA"]
[PlyCount "57"]
[EventDate "2019.01.02"]
[EventType "swiss"]
[EventCountry "FRA"]
[SourceTitle "playchess.com"]
[Source "ChessBase"]
[SourceQuality "1"]
[TimeControl "5400+30"]

1. d4 {[%emt 0:00:00]} Nf6 {[%emt 0:00:00]} 2. c4 {[%emt 0:00:00]} e6 {[%emt 0:00:51]} 3. Nc3 {[%emt 0:00:08]} Bb4 {[%emt 0:00:38]} 4. e3 {[%emt 0:00:32]} b6 {[%emt 0:01:51]} 5. Nge2 {[%emt 0:00:59]} Bb7 {[%emt 0:00:11]} 6. a3 {[%emt 0:00:51]} Bxc3+ {[%emt 0:04:33]} 7. Nxc3 {[%emt 0:00:09]} O-O {[%emt 0:01:50]} 8. Bd3 {[%emt 0:01:36]} d5 {[%emt 0:00:34]} 9. O-O {[%emt 0:16:21]} Nbd7 {[%emt 0:06:06]} 10. cxd5 {[%emt 0:08:39]} exd5 {[%emt 0:09:31]} 11. Bd2 {[%emt 0:23:11]} Ne4 {[%emt 0:16:57]} 12. Rc1 {[%emt 0:00:35]} c5 {[%emt 0:12:02]} 13. Bb1 {[%emt 0:08:15]} Qh4 {[%emt 0:08:16]} 14. Be1 {[%emt 0:02:52]} cxd4 {[%emt 0:06:34]} 15. Qxd4 {[%emt 0:02:52]} Qf6 {[%emt 0:09:52]} 16. Nxe4 {[%emt 0:03:56]} Qxd4 {[%emt 0:00:56]} 17. exd4 {[%emt 0:00:02]} dxe4 {[%emt 0:02:18]} 18. Rc7 {[%emt 0:00:51]} Ba6 {[%emt 0:00:22]} 19. Rxd7 {[%emt 0:01:36]} Bb5 {[%emt 0:06:53]} 20. Re7 {[%emt 0:03:34]} Bxf1 {[%emt 0:06:05]} 21. Kxf1 {[%emt 0:00:12]} Rfe8 {[%emt 0:00:07]} 22. Rxe4 {[%emt 0:00:56]} Rxe4 {[%emt 0:01:11]} 23. Bxe4 {[%emt 0:00:03]} Re8 {[%emt 0:01:05]} 24. Bc6 {[%emt 0:01:44]} Rc8 {[%emt 0:00:05]} 25. d5 {[%emt 0:00:13]} f6 {[%emt 0:01:20]} 26. Bb4 {[%emt 0:00:41]} a5 {[%emt 0:01:05]} 27. Bd6 {[%emt 0:02:00]} Kf7 {[%emt 0:00:26]} 28. Ke2 {[%emt 0:02:25]} b5 {[%emt 0:00:56]} 29. Kd3 {[%emt 0:01:07]} 1-0

[Event "15th Vandoeuvre Open 2019"]
[Site "Vandoeuvre-les-Nancy"]
[Date "2019.01.04"]
[Round "5"]
[White "Rauta, Nicolas"]
[Black "Oney, Remel"]
[Result "1/2-1/2"]
[ECO "A25"]
[WhiteElo "1904"]
[BlackElo "1876"]
[Annotator "NA"]
[PlyCount "72"]
[EventDate "2019.01.02"]
[EventType "swiss"]
[EventCountry "FRA"]
[SourceTitle "playchess.com"]
[Source "ChessBase"]
[SourceQuality "1"]
[TimeControl "5400+30"]

1. c4 {[%emt 0:00:50]} e5 {[%emt 0:01:54]} 2. Nc3 {[%emt 0:01:03]} Bc5 {[%emt 0:01:06]} 3. g3 {[%emt 0:00:50]} Nc6 {[%emt 0:00:42]} 4. Bg2 {[%emt 0:00:38]} a6 {[%emt 0:00:31]} 5. e3 {[%emt 0:00:37]} d6 {[%emt 0:00:13]} 6. Nge2 {[%emt 0:00:25]} h5 {[%emt 0:00:17]} 7. h4 {[%emt 0:10:22]} f5 {[%emt 0:05:59]} 8. d4 {[%emt 0:01:08]} Ba7 {[%emt 0:00:53]} 9. Bxc6+ {[%emt 0:04:11]} bxc6 {[%emt 0:00:01]} 10. dxe5 {[%emt 0:00:13]} dxe5 {[%emt 0:00:01]} 11. Qxd8+ {[%emt 0:00:11]} Kxd8 {[%emt 0:00:02]} 12. b3 {[%emt 0:19:44]} Nf6 {[%emt 0:03:08]} 13. Ba3 {[%emt 0:09:00]} Ke8 {[%emt 0:01:23]} 14. Ng1 {[%emt 0:08:32]} f4 {[%emt 0:05:54]} 15. exf4 {[%emt 0:01:33]} exf4 {[%emt 0:00:09]} 16. c5 {[%emt 0:04:23]} Kf7 {[%emt 0:05:48]} 17. gxf4 {[%emt 0:04:45]} Re8+ {[%emt 0:03:20]} 18. Kf1 {[%emt 0:00:34]} Bf5 {[%emt 0:04:41]} 19. Nf3 {[%emt 0:01:14]} Nd7 {[%emt 0:01:09]} 20. Ng5+ {[%emt 0:01:08]} Kg8 {[%emt 0:00:30]} 21. Na4 {[%emt 0:01:24]} Re7 {[%emt 0:04:22]} 22. Kg2 {[%emt 0:04:01]} Rae8 {[%emt 0:00:43]} 23. Rhc1 {[%emt 0:05:42]} Nf6 {[%emt 0:10:36]} 24. Bb2 {[%emt 0:04:50]} Re2 {[%emt 0:01:51]} 25. Be5 {[%emt 0:00:50]} Ng4 {[%emt 0:00:59]} 26. Re1 {[%emt 0:06:06]} Rxf2+ {[%emt 0:02:04]} 27. Kg3 {[%emt 0:00:02]} Rd8 {[%emt 0:08:35]} 28. Rad1 {[%emt 0:01:17]} Rfd2 {[%emt 0:04:47]} 29. Rxd2 {[%emt 0:00:06]} Rxd2 {[%emt 0:00:05]} 30. Bxc7 {[%emt 0:01:12]} Rd3+ {[%emt 0:03:54]} 31. Kg2 {[%emt 0:00:26]} Ne3+ {[%emt 0:18:26]} 32. Kf2 {[%emt 0:01:39]} Ng4+ {[%emt 0:01:46]} 33. Kg2 {[%emt 0:00:11]} Ne3+ {[%emt 0:00:05]} 34. Kf2 {[%emt 0:00:07]} Ng4+ {[%emt 0:00:06]} 35. Kg2 {[%emt 0:08:16]} Kf8 {[%emt 0:11:30]} 36. Kh1 {[%emt 0:00:30]} Rd6 1/2-1/2

[Event "15th Vandoeuvre Open 2019"]
[Site "Vandoeuvre-les-Nancy"]
[Date "2019.01.04"]
[Round "5"]
[White "Budak, Rezan"]
[Black "Winkin, Jos"]
[Result "1-0"]
[ECO "E91"]
[WhiteElo "1883"]
[BlackElo "1484"]
[Annotator "NA"]
[PlyCount "87"]
[EventDate "2019.01.02"]
[EventType "swiss"]
[EventCountry "FRA"]
[SourceTitle "playchess.com"]
[Source "ChessBase"]
[SourceQuality "1"]
[TimeControl "5400+30"]

1. d4 {[%emt 0:05:47]} Nf6 {[%emt 1:30:30]} 2. Nf3 {[%emt 1:25:13]} g6 {[%emt 0:00:30]} 3. c4 {[%emt 0:00:30]} d6 {[%emt 0:00:30]} 4. Nc3 {[%emt 0:00:30]} Bg7 {[%emt 0:00:00]} 5. e4 {[%emt 0:00:00]} O-O {[%emt 0:00:00]} 6. Be2 {[%emt 0:01:00]} c5 {[%emt 0:01:30]} 7. dxc5 {[%emt 0:00:00]} dxc5 {[%emt 0:00:00]} 8. Be3 {[%emt 0:00:00]} b6 {[%emt 0:00:00]} 9. O-O {[%emt 0:01:30]} Nc6 {[%emt 0:01:30]} 10. Bg5 {[%emt 0:00:30]} Bb7 {[%emt 0:00:00]} 11. Qc1 {[%emt 0:00:00]} Nd4 {[%emt 0:00:00]} 12. Nxd4 {[%emt 0:00:00]} cxd4 {[%emt 0:00:00]} 13. Nd5 {[%emt 0:00:00]} Nxd5 {[%emt 0:00:00]} 14. cxd5 {[%emt 0:00:00]} f6 {[%emt 0:00:00]} 15. Bh4 {[%emt 0:00:00]} e6 {[%emt 0:00:00]} 16. dxe6 {[%emt 0:00:00]} Bxe4 {[%emt 0:00:00]} 17. Bc4 {[%emt 0:00:00]} Qe7 {[%emt 0:00:00]} 18. Re1 {[%emt 0:00:00]} Bc6 {[%emt 0:00:00]} 19. Qd2 {[%emt 0:00:00]} Rfd8 {[%emt 0:00:00]} 20. Rad1 {[%emt 0:00:00]} Rac8 {[%emt 0:00:00]} 21. Ba6 {[%emt 0:00:00]} Bb7 {[%emt 0:00:00]} 22. Bxb7 {[%emt 0:00:00]} Qxb7 {[%emt 0:00:00]} 23. e7 {[%emt 0:00:00]} Re8 {[%emt 0:00:00]} 24. Qxd4 {[%emt 0:00:00]} g5 {[%emt 0:00:00]} 25. Bg3 {[%emt 0:00:00]} Rxe7 {[%emt 0:00:00]} 26. h4 {[%emt 0:00:00]} Rce8 {[%emt 0:00:00]} 27. Qc4+ {[%emt 0:00:00]} Kh8 {[%emt 0:00:00]} 28. Rxe7 {[%emt 0:00:00]} Qxe7 {[%emt 0:00:00]} 29. Qb5 {[%emt 0:00:00]} Bf8 {[%emt 0:00:00]} 30. hxg5 {[%emt 0:00:00]} fxg5 {[%emt 0:00:00]} 31. Qd7 {[%emt 0:00:00]} Qxd7 {[%emt 0:00:00]} 32. Rxd7 {[%emt 0:00:00]} Re7 {[%emt 0:00:00]} 33. Rd5 {[%emt 0:01:43]} h6 {[%emt 0:00:00]} 34. Rd8 {[%emt 0:01:53]} Kg7 {[%emt 0:00:00]} 35. Kh2 {[%emt 0:00:08]} Re2 {[%emt 0:00:00]} 36. Rd7+ {[%emt 0:05:23]} Kg6 {[%emt 0:00:00]} 37. Rxa7 {[%emt 0:00:42]} Rxb2 {[%emt 0:00:00]} 38. a4 {[%emt 0:00:27]} Bc5 {[%emt 0:00:00]} 39. Ra6 {[%emt 0:01:28]} Ra2 {[%emt 0:00:00]} 40. Bc7 {[%emt 0:01:25]} Kh5 {[%emt 0:00:00]} 41. f3 {[%emt 0:00:49]} Ra1 {[%emt 0:02:01]} 42. a5 {[%emt 0:00:22]} bxa5 {[%emt 0:03:05]} 43. g4+ {[%emt 0:00:14]} Kh4 {[%emt 0:00:25]} 44. Bg3# {[%emt 0:00:07]} 1-0

[Event "15th Vandoeuvre Open 2019"]
[Site "Vandoeuvre-les-Nancy"]
[Date "2019.01.04"]
[Round "5"]
[White "Fretel, Liza"]
[Black "Mostefa Kara, Camil"]
[Result "1-0"]
[ECO "B26"]
[WhiteElo "1855"]
[BlackElo "1940"]
[Annotator "NA"]
[PlyCount "167"]
[EventDate "2019.01.02"]
[EventType "swiss"]
[EventCountry "FRA"]
[SourceTitle "playchess.com"]
[Source "ChessBase"]
[SourceQuality "1"]
[TimeControl "5400+30"]

1. e4 {[%emt 1:30:30]} c5 {[%emt 0:00:00]} 2. Nc3 {[%emt 0:00:30]} Nc6 {[%emt 1:31:00]} 3. g3 {[%emt 0:00:00]} g6 4. Bg2 {[%emt 0:00:00]} Bg7 5. d3 {[%emt 0:00:00]} d6 {[%emt 0:00:00]} 6. Be3 e6 {[%emt 0:02:00]} 7. Qd2 {[%emt 0:02:30]} Nd4 {[%emt 0:00:30]} 8. Nd1 {[%emt 0:00:30]} Nc6 {[%emt 0:00:30]} 9. a3 {[%emt 0:00:30]} Qc7 {[%emt 0:00:30]} 10. Rb1 {[%emt 0:00:30]} b6 {[%emt 0:00:30]} 11. b4 {[%emt 0:00:30]} Rb8 {[%emt 0:00:30]} 12. b5 {[%emt 0:00:30]} Nce7 {[%emt 0:00:30]} 13. f4 {[%emt 0:00:30]} Bb7 {[%emt 0:00:00]} 14. Nf3 {[%emt 0:00:30]} Nf6 {[%emt 0:01:00]} 15. h3 {[%emt 0:00:30]} Nd7 {[%emt 0:00:30]} 16. O-O {[%emt 0:00:00]} O-O 17. c4 {[%emt 0:00:00]} Rfd8 18. Qc2 {[%emt 0:00:00]} d5 19. g4 {[%emt 0:02:00]} Nf8 {[%emt 0:02:00]} 20. Kh1 {[%emt 0:00:30]} f5 {[%emt 0:00:30]} 21. e5 {[%emt 0:00:30]} dxc4 {[%emt 0:00:30]} 22. dxc4 {[%emt 0:00:30]} Be4 {[%emt 0:00:30]} 23. Qc1 {[%emt 0:00:30]} Bxb1 {[%emt 0:00:00]} 24. Qxb1 {[%emt 0:00:00]} Qd7 {[%emt 0:01:00]} 25. Nf2 {[%emt 0:01:00]} Qc7 {[%emt 0:00:00]} 26. g5 {[%emt 0:00:30]} Rd7 {[%emt 0:00:00]} 27. Nd3 Rbd8 {[%emt 0:01:30]} 28. Rd1 {[%emt 0:00:00]} Qc8 {[%emt 0:00:30]} 29. Nfe1 {[%emt 0:01:30]} Kf7 {[%emt 0:00:30]} 30. Kh2 {[%emt 0:00:30]} Qc7 {[%emt 0:00:30]} 31. Qb2 {[%emt 0:00:30]} h6 {[%emt 0:00:00]} 32. h4 {[%emt 0:00:30]} hxg5 {[%emt 0:00:00]} 33. hxg5 {[%emt 0:00:00]} Nh7 {[%emt 0:00:00]} 34. Qc3 {[%emt 0:01:00]} Rh8 {[%emt 0:00:00]} 35. Kg3 {[%emt 0:00:30]} Rhd8 {[%emt 0:02:30]} 36. a4 {[%emt 0:00:30]} Nf8 {[%emt 0:00:30]} 37. Kf2 {[%emt 0:00:30]} Nh7 {[%emt 0:00:00]} 38. Ke2 {[%emt 0:00:30]} Nf8 {[%emt 0:00:00]} 39. Rd2 {[%emt 0:00:30]} Qc8 {[%emt 0:00:14]} 40. Kd1 {[%emt 0:00:00]} Qc7 {[%emt 0:00:34]} 41. Kc2 {[%emt 0:00:00]} Qc8 {[%emt 0:00:13]} 42. Kb3 {[%emt 0:00:00]} Qc7 {[%emt 0:01:59]} 43. Kc2 {[%emt 0:00:00]} Qc8 {[%emt 0:00:30]} 44. Rd1 {[%emt 0:02:30]} Qc7 {[%emt 0:00:30]} 45. Ra1 {[%emt 0:00:30]} Rc8 {[%emt 0:00:30]} 46. a5 {[%emt 0:00:30]} Qd8 {[%emt 0:00:30]} 47. axb6 {[%emt 0:00:30]} axb6 {[%emt 0:00:30]} 48. Ra6 {[%emt 0:00:30]} Rd4 {[%emt 0:00:30]} 49. Ra7 {[%emt 0:00:30]} Rd7 {[%emt 0:00:00]} 50. Qa3 Rd4 {[%emt 0:01:00]} 51. Bxd4 {[%emt 0:01:00]} Qxd4 {[%emt 0:00:00]} 52. Kb3 {[%emt 0:00:00]} Rd8 {[%emt 0:01:00]} 53. Rb7 {[%emt 0:01:00]} Qe3 {[%emt 0:00:30]} 54. Bf1 {[%emt 0:00:30]} Rd4 {[%emt 0:00:30]} 55. Qa7 {[%emt 0:00:30]} Nd7 {[%emt 0:00:00]} 56. Rxd7 {[%emt 0:00:00]} Rxd7 {[%emt 0:00:02]} 57. Qxd7 {[%emt 0:00:00]} Qd2 {[%emt 0:01:28]} 58. Qb7 {[%emt 0:01:30]} Qd1+ {[%emt 0:00:00]} 59. Kb2 {[%emt 0:00:30]} Bf8 {[%emt 0:01:00]} 60. Qxb6 {[%emt 0:00:30]} Qd2+ {[%emt 0:00:00]} 61. Nc2 {[%emt 0:00:00]} Qd1 {[%emt 0:01:00]} 62. Nde1 {[%emt 0:01:00]} Qg4 {[%emt 0:00:30]} 63. Qxc5 {[%emt 0:00:30]} Qxf4 {[%emt 0:00:30]} 64. Bg2 {[%emt 0:00:30]} Bg7 {[%emt 0:00:30]} 65. Nf3 {[%emt 0:00:30]} Qe4 {[%emt 0:00:30]} 66. Qd4 {[%emt 0:00:30]} Qb7 {[%emt 0:00:30]} 67. Nb4 {[%emt 0:00:30]} Qb8 {[%emt 0:00:00]} 68. Kb3 Bh8 {[%emt 0:01:00]} 69. Qd6 {[%emt 0:01:00]} Qb7 {[%emt 0:00:30]} 70. Ne1 {[%emt 0:00:30]} Qa7 {[%emt 0:00:30]} 71. Ned3 {[%emt 0:00:30]} Qg1 {[%emt 0:00:30]} 72. Bc6 {[%emt 0:00:30]} Qb1+ {[%emt 0:00:30]} 73. Nb2 {[%emt 0:00:30]} Qe1 {[%emt 0:00:30]} 74. Qd7 {[%emt 0:00:30]} Bxe5 {[%emt 0:00:30]} 75. Qe8+ {[%emt 0:00:30]} Kg7 {[%emt 0:00:00]} 76. Qxe7+ {[%emt 0:00:00]} Kh8 {[%emt 0:01:00]} 77. N4d3 {[%emt 0:00:00]} Qc3+ {[%emt 0:00:00]} 78. Ka4 {[%emt 0:01:30]} Bd4 {[%emt 0:01:00]} 79. Qxe6 {[%emt 0:00:00]} Qc2+ {[%emt 0:00:00]} 80. Ka3 {[%emt 0:01:00]} Qc3+ {[%emt 0:00:17]} 81. Ka2 {[%emt 0:00:30]} f4 {[%emt 0:00:25]} 82. Qxg6 {[%emt 0:00:30]} Bg7 {[%emt 0:00:41]} 83. Qh5+ {[%emt 0:00:00]} Kg8 {[%emt 0:00:09]} 84. Bd5+ {[%emt 0:00:00]} 1-0